fUSD/lending_fUSD_20240516
["ID","MTS","AMOUNT","RATE_DAILY","PERIOD"]
[327154397,1715862636152,-1598.93041028,0.00010966,2]
[327154399,1715862636162,-17347.44021281,0.00010966,2]
[327154401,1715862636172,-1000.0,0.00010967,2]
[327154403,1715862636182,-100000.0,0.00010967,2]
[327154405,1715862636192,-8525.4206,0.00010967,2]
[327154407,1715862636202,-197.56004175,0.00010968,2]
[327154409,1715862636212,-285.97230224,0.00010968,2]
[327154410,1715862636224,-288.1646639,0.00010968,2]
[327154413,1715862636234,-171.5983044,0.0001098,2]
[327154414,1715862636245,-200.0,0.00010983,2]
[327154416,1715862636255,-200.0,0.00010985,2]
[327154419,1715862636265,-1000.0,0.00010985,2]
[327154421,1715862636274,-500.0,0.00010985,2]
[327154423,1715862636283,-800.0,0.00010986,2]
[327154425,1715862636293,-800.0,0.00010986,2]
[327154427,1715862636302,-800.0,0.00010986,2]
[327154429,1715862636313,-800.0,0.00010986,2]
[327154431,1715862636322,-150.0,0.00010997,2]
[327154433,1715862636332,-26086.95527343,0.00011,5]
[327154435,1715862636342,-1000.0,0.00011,2]
[327154437,1715862636357,-175.57,0.00011012,2]
[327154439,1715862636366,-500.0,0.00011021,2]
[327154440,1715862636375,-500.0,0.00011021,2]
[327154443,1715862636385,-500.0,0.00011021,2]
[327154444,1715862636396,-500.0,0.00011021,2]
[327154446,1715862636406,-870.87,0.00011021,2]
[327154449,1715862636415,-500.0,0.00011021,2]
[327154451,1715862636424,-500.0,0.00011021,2]
[327154452,1715862636434,-500.0,0.00011021,2]
[327154455,1715862636443,-500.0,0.00011021,2]
[327154457,1715862636453,-500.0,0.00011021,2]
[327154459,1715862636462,-500.0,0.00011021,2]
[327154461,1715862636471,-500.0,0.00011021,2]
[327154462,1715862636482,-1352.66,0.00011021,2]
[327154463,1715862636492,-500.0,0.00011021,2]
[327154464,1715862636502,-500.0,0.00011021,2]
[327154465,1715862636511,-500.0,0.00011021,2]
[327154466,1715862636521,-500.0,0.00011021,2]
[327154467,1715862636531,-500.0,0.00011021,2]
[327154468,1715862636541,-500.0,0.00011021,2]
[327154469,1715862636551,-500.0,0.00011021,2]
[327154470,1715862636561,-500.0,0.00011021,2]
[327154471,1715862636571,-500.0,0.00011021,2]
[327154472,1715862636582,-500.0,0.00011021,2]
[327154473,1715862636593,-500.0,0.00011021,2]
[327154493,1715862636829,-500.0,0.00011021,2]
[327154497,1715862636866,-1064.42,0.00011021,2]
[327154499,1715862636876,-500.0,0.00011021,2]
[327154501,1715862636886,-500.0,0.00011021,2]
[327154503,1715862636896,-500.0,0.00011021,2]
[327154505,1715862636905,-500.0,0.00011021,2]
[327154507,1715862636915,-402.05292807,0.00011021,2]
[327154509,1715862636925,-500.0,0.00011021,2]
[327154511,1715862636935,-500.0,0.00011021,2]
[327154513,1715862636945,-500.0,0.00011021,2]
[327154515,1715862636955,-500.0,0.00011021,2]
[327154516,1715862636964,-500.0,0.00011021,2]
[327154517,1715862636974,-500.0,0.00011021,2]
[327154518,1715862636985,-500.0,0.00011021,2]
[327154519,1715862636994,-500.0,0.00011021,2]
[327154520,1715862637005,-1024.85,0.00011021,2]
[327154521,1715862637015,-561.82,0.00011021,2]
[327154522,1715862637025,-559.68,0.00011021,2]
[327154523,1715862637036,-500.0,0.00011021,2]
[327154524,1715862637047,-500.0,0.00011021,2]
[327154525,1715862637059,-500.0,0.00011021,2]
[327154526,1715862637074,-500.0,0.00011021,2]
[327154527,1715862637084,-500.0,0.00011021,2]
[327154528,1715862637095,-500.0,0.00011021,2]
[327154529,1715862637113,-500.0,0.00011021,2]
[327154530,1715862637124,-500.0,0.00011021,2]
[327154531,1715862637134,-1252.3,0.00011021,2]
[327154532,1715862637145,-500.0,0.00011021,2]
[327154533,1715862637155,-500.94781869,0.00011021,2]
[327154534,1715862637164,-500.0,0.00011021,2]
[327154535,1715862637175,-608.41993729,0.00011021,2]
[327154536,1715862637185,-500.0,0.00011021,2]
[327154537,1715862637195,-500.0,0.00011021,2]
[327154538,1715862637205,-500.0,0.00011021,2]
[327154539,1715862637215,-498.85030972,0.00011021,2]
[327154540,1715862637225,-500.0,0.00011021,2]
[327154541,1715862637235,-500.0,0.00011021,2]
[327154542,1715862637246,-500.0,0.00011021,2]
[327154543,1715862637256,-500.0,0.00011021,2]
[327154544,1715862637265,-500.0,0.00011021,2]
[327154545,1715862637276,-500.0,0.00011022,2]
[327154546,1715862637285,-500.0,0.00011022,2]
[327154547,1715862637295,-500.0,0.00011022,2]
[327154548,1715862637305,-500.0,0.00011022,2]
[327154549,1715862637314,-20000.0,0.00011022,2]
[327154550,1715862637324,-500.0,0.00011022,2]
[327154551,1715862637334,-500.0,0.00011022,2]
[327154552,1715862637344,-500.0,0.00011022,2]
[327154553,1715862637358,-500.0,0.00011022,2]
[327154554,1715862637368,-500.0,0.00011022,2]
[327154555,1715862637378,-500.0,0.00011022,2]
[327154556,1715862637388,-500.0,0.00011022,2]
[327154557,1715862637397,-360.1368061,0.00011022,2]
[327154558,1715862637408,-502.25480687,0.00011022,2]
[327154559,1715862637418,-402.78359363,0.00011022,2]
[327154560,1715862637428,-500.0,0.00011022,2]
[327154561,1715862637439,-506.98219957,0.00011022,2]
[327154562,1715862637449,-500.0,0.00011022,2]
[327154563,1715862637460,-506.20608116,0.00011022,2]
[327154564,1715862637469,-506.61469381,0.00011022,2]
[327154565,1715862637479,-500.0,0.00011022,2]
[327154566,1715862637488,-509.82662715,0.00011022,2]
[327154567,1715862637498,-528.45,0.00011022,2]
[327154568,1715862637508,-505.59353363,0.00011022,2]
[327154569,1715862637518,-500.0,0.00011022,2]
[327154570,1715862637528,-503.2356769,0.00011022,2]
[327154571,1715862637538,-500.0,0.00011022,2]
[327154572,1715862637547,-526.01508442,0.00011022,2]
[327154573,1715862637557,-510.28015708,0.00011022,2]
[327154574,1715862637567,-500.0,0.00011022,2]
[327154575,1715862637576,-510.27984334,0.00011022,2]
[327154576,1715862637586,-500.0,0.00011022,2]
[327154577,1715862637596,-518.90004563,0.00011022,2]
[327154578,1715862637610,-505.71291157,0.00011022,2]
[327154579,1715862637619,-599.26,0.00011022,2]
[327154580,1715862637629,-500.0,0.00011022,2]
[327154581,1715862637638,-507.46316472,0.00011022,2]
[327154582,1715862637648,-537.32378728,0.00011022,2]
[327154583,1715862637657,-500.0,0.00011022,2]
[327154584,1715862637667,-432.61587055,0.00011022,2]
[327154585,1715862637676,-500.0,0.00011022,2]
[327154586,1715862637685,-500.0,0.00011022,2]
[327154587,1715862637694,-500.0,0.00011022,2]
[327154588,1715862637704,-641.37620062,0.00011022,2]
[327154589,1715862637713,-500.0,0.00011022,2]
[327154590,1715862637723,-500.0,0.00011022,2]
[327154591,1715862637732,-506.75676671,0.00011022,2]
[327154592,1715862637742,-500.0,0.00011022,2]
[327154593,1715862637752,-505.66337641,0.00011022,2]
[327154594,1715862637761,-500.0,0.00011022,2]
[327154595,1715862637771,-500.0,0.00011022,2]
[327154596,1715862637780,-508.54809805,0.00011022,2]
[327154597,1715862637790,-506.8047223,0.00011022,2]
[327154598,1715862637799,-502.60094152,0.00011022,2]
[327154599,1715862637808,-505.67647147,0.00011022,2]
[327154600,1715862637820,-508.22850844,0.00011022,2]
[327154601,1715862637830,-512.96115379,0.00011022,2]
[327154602,1715862637840,-507.63154274,0.00011022,2]
[327154603,1715862637849,-500.0,0.00011022,2]
[327154604,1715862637865,-500.0,0.00011022,2]
[327154605,1715862637874,-500.0,0.00011022,2]
[327154606,1715862637883,-500.0,0.00011022,2]
[327154607,1715862637893,-504.80883169,0.00011022,2]
[327154608,1715862637903,-500.0,0.00011022,2]
[327154609,1715862637911,-517.92747295,0.00011022,2]
[327154610,1715862637921,-500.0,0.00011022,2]
[327154611,1715862637930,-500.0,0.00011022,2]
[327154612,1715862637939,-364.6141685,0.00011022,2]
[327154613,1715862637949,-466.7550044,0.00011022,2]
[327154614,1715862637958,-500.0,0.00011022,2]
[327154615,1715862637967,-500.0,0.00011022,2]
[327154616,1715862637976,-525.44046875,0.00011022,2]
[327154617,1715862637986,-150.0,0.00011022,2]
[327154618,1715862637995,-504.15281784,0.00011022,2]
[327154619,1715862638004,-500.0,0.00011022,2]
[327154620,1715862638014,-504.57345085,0.00011022,2]
[327154621,1715862638023,-500.0,0.00011022,2]
[327154622,1715862638034,-500.0,0.00011022,2]
[327154623,1715862638044,-221.33784533,0.00011022,2]
[327154624,1715862638054,-511.16906866,0.00011022,2]
[327154625,1715862638066,-506.94591275,0.00011022,2]
[327154626,1715862638076,-505.53891602,0.00011022,2]
[327154627,1715862638086,-500.0,0.00011022,2]
[327154628,1715862638096,-506.70010017,0.00011022,2]
[327154629,1715862638113,-500.0,0.00011022,2]
[327154630,1715862638122,-500.0,0.00011022,2]
[327154631,1715862638132,-500.0,0.00011022,2]
[327154632,1715862638142,-588.00414271,0.00011022,2]
[327154633,1715862638152,-500.0,0.00011022,2]
[327154634,1715862638162,-500.0,0.00011022,2]
[327154636,1715862638171,-504.11371044,0.00011022,2]
[327154638,1715862638180,-500.0,0.00011022,2]
[327154640,1715862638191,-500.0,0.00011022,2]
[327154642,1715862638200,-500.0,0.00011022,2]
[327154644,1715862638210,-500.0,0.00011022,2]
[327154645,1715862638219,-520.82353049,0.00011022,2]
[327154647,1715862638230,-500.0,0.00011022,2]
[327154649,1715862638240,-517.47444488,0.00011022,2]
[327154651,1715862638250,-500.0,0.00011022,2]
[327154653,1715862638260,-500.0,0.00011022,2]
[327154654,1715862638270,-500.0,0.00011022,2]
[327154656,1715862638279,-535.82535758,0.00011022,2]
[327154657,1715862638289,-510.64356905,0.00011022,2]
[327154658,1715862638299,-500.0,0.00011022,2]
[327154659,1715862638308,-509.9521708,0.00011022,2]
[327154660,1715862638319,-500.0,0.00011022,2]
[327154661,1715862638328,-505.95610421,0.00011022,2]
[327154662,1715862638338,-500.0,0.00011022,2]
[327154663,1715862638349,-500.0,0.00011022,2]
[327154664,1715862638365,-502.16658692,0.00011022,2]
[327154665,1715862638377,-506.0480758,0.00011022,2]
[327154666,1715862638388,-505.34250266,0.00011022,2]
[327154667,1715862638398,-500.0,0.00011022,2]
[327154669,1715862638408,-500.0,0.00011022,2]
[327154671,1715862638418,-504.61919266,0.00011022,2]
[327154674,1715862638428,-504.20027158,0.00011022,2]
[327154677,1715862638438,-500.0,0.00011022,2]
[327154679,1715862638447,-522.34952187,0.00011022,2]
[327154681,1715862638457,-500.0,0.00011022,2]
[327154683,1715862638466,-502.98412599,0.00011022,2]
[327154685,1715862638476,-500.0,0.00011022,2]
[327154686,1715862638485,-500.0,0.00011022,2]
[327154688,1715862638494,-508.65292278,0.00011022,2]
[327154690,1715862638504,-530.32562658,0.00011022,2]
[327154691,1715862638513,-521.56183006,0.00011022,2]
[327154692,1715862638523,-506.8922057,0.00011022,2]
[327154693,1715862638534,-500.0,0.00011022,2]
[327154694,1715862638544,-507.20643355,0.00011022,2]
[327154695,1715862638553,-524.44990704,0.00011022,2]
[327154696,1715862638562,-516.0726045,0.00011022,2]
[327154697,1715862638572,-500.0,0.00011022,2]
[327154698,1715862638581,-584.15909771,0.00011022,2]
[327154699,1715862638591,-622.39462722,0.00011022,2]
[327154700,1715862638600,-517.59627948,0.00011022,2]
[327154701,1715862638618,-500.0,0.00011022,2]
[327154702,1715862638627,-508.22878614,0.00011022,2]
[327154703,1715862638637,-507.170991,0.00011022,2]
[327154704,1715862638648,-500.0,0.00011022,2]
[327154705,1715862638658,-500.0,0.00011022,2]
[327154706,1715862638668,-500.0,0.00011022,2]
[327154707,1715862638677,-507.21149837,0.00011022,2]
[327154708,1715862638687,-500.0,0.00011022,2]
[327154709,1715862638696,-504.36070701,0.00011022,2]
[327154710,1715862638705,-502.7732191,0.00011022,2]
[327154711,1715862638714,-521.38612721,0.00011022,2]
[327154712,1715862638723,-500.0,0.00011022,2]
[327154713,1715862638732,-533.34918444,0.00011022,2]
[327154714,1715862638742,-500.0,0.00011022,2]
[327154715,1715862638751,-500.0,0.00011022,2]
[327154716,1715862638761,-509.96081834,0.00011022,2]
[327154717,1715862638770,-508.14718242,0.00011022,2]
[327154718,1715862638779,-500.0,0.00011022,2]
[327154719,1715862638789,-500.0,0.00011022,2]
[327154720,1715862638798,-500.0,0.00011022,2]
[327154721,1715862638808,-500.0,0.00011022,2]
[327154722,1715862638817,-506.11605862,0.00011022,2]
[327154723,1715862638826,-500.0,0.00011022,2]
[327154724,1715862638836,-506.07682415,0.00011022,2]
[327154725,1715862638846,-505.90094278,0.00011022,2]
[327154726,1715862638860,-500.0,0.00011022,2]
[327154727,1715862638870,-519.49159397,0.00011022,2]
[327154728,1715862638879,-500.0,0.00011022,2]
[327154729,1715862638889,-510.63314376,0.00011022,2]
[327154730,1715862638898,-472.2392955,0.00011022,2]
[327154731,1715862638907,-500.0,0.00011022,2]
[327154732,1715862638917,-503.2507854,0.00011022,2]
[327154733,1715862638927,-505.5619932,0.00011022,2]
[327154734,1715862638936,-540.20283223,0.00011022,2]
[327154735,1715862638945,-500.0,0.00011022,2]
[327154736,1715862638954,-524.43470818,0.00011022,2]
[327154737,1715862638964,-511.97444289,0.00011022,2]
[327154738,1715862638973,-504.32778873,0.00011022,2]
[327154739,1715862638982,-500.0,0.00011022,2]
[327154740,1715862638992,-500.00035555,0.00011022,2]
[327154741,1715862639001,-505.26133807,0.00011022,2]
[327154742,1715862639011,-503.85064305,0.00011022,2]
[327154743,1715862639021,-520.17187944,0.00011022,2]
[327154744,1715862639031,-500.0,0.00011022,2]
[327154745,1715862639043,-516.24018645,0.00011022,2]
[327154746,1715862639053,-505.72402678,0.00011022,2]
[327154747,1715862639070,-504.30505431,0.00011022,2]
[327154748,1715862639080,-510.69466908,0.00011022,2]
[327154749,1715862639090,-500.0,0.00011022,2]
[327154750,1715862639100,-500.0,0.00011022,2]
[327154751,1715862639118,-500.0,0.00011022,2]
[327154752,1715862639129,-500.0,0.00011022,2]
[327154754,1715862639140,-500.0,0.00011022,2]
[327154756,1715862639149,-518.06200143,0.00011022,2]
[327154758,1715862639162,-500.0,0.00011022,2]
[327154760,1715862639173,-506.19864631,0.00011022,2]
[327154762,1715862639183,-500.0,0.00011022,2]
[327154764,1715862639194,-500.0,0.00011022,2]
[327154766,1715862639204,-511.16096638,0.00011022,2]
[327154769,1715862639216,-500.0,0.00011022,2]
[327154770,1715862639227,-500.0,0.00011022,2]
[327154771,1715862639238,-500.0,0.00011022,2]
[327154772,1715862639250,-500.0,0.00011022,2]
[327154773,1715862639261,-521.91631349,0.00011022,2]
[327154774,1715862639271,-500.0,0.00011022,2]
[327154775,1715862639281,-502.61304064,0.00011022,2]
[327154776,1715862639292,-500.0,0.00011022,2]
[327154777,1715862639302,-500.0,0.00011022,2]
[327154778,1715862639312,-500.0,0.00011022,2]
[327154779,1715862639321,-500.0,0.00011022,2]
[327154780,1715862639331,-500.0,0.00011022,2]
[327154781,1715862639341,-500.0,0.00011022,2]
[327154782,1715862639356,-500.0,0.00011022,2]
[327154783,1715862639372,-636.34,0.00011022,2]
[327154784,1715862639382,-1752.99,0.00011022,2]
[327154785,1715862639392,-500.0,0.00011022,2]
[327154786,1715862639403,-531.02471201,0.00011022,2]
[327154787,1715862639413,-500.0,0.00011022,2]
[327154788,1715862639423,-506.09235706,0.00011022,2]
[327154789,1715862639433,-500.0,0.00011022,2]
[327154790,1715862639442,-500.0,0.00011022,2]
[327154791,1715862639453,-500.0,0.00011022,2]
[327154792,1715862639463,-1484.16,0.00011022,2]
[327154793,1715862639472,-500.0,0.00011022,2]
[327154794,1715862639483,-617.76,0.00011022,2]
[327154795,1715862639496,-1562.28,0.00011022,2]
[327154796,1715862639506,-531.48703098,0.00011022,2]
[327154797,1715862639516,-500.0,0.00011022,2]
[327154798,1715862639526,-500.0,0.00011022,2]
[327154799,1715862639536,-500.0,0.00011022,2]
[327154800,1715862639545,-511.68812218,0.00011022,2]
[327154801,1715862639556,-500.0,0.00011022,2]
[327154802,1715862639566,-500.0,0.00011022,2]
[327154803,1715862639576,-500.0,0.00011022,2]
[327154804,1715862639586,-500.0,0.00011022,2]
[327154805,1715862639596,-502.75795173,0.00011022,2]
[327154806,1715862639610,-200.54885542,0.00011022,2]
[327154807,1715862639619,-500.0,0.00011022,2]
[327154808,1715862639629,-500.0,0.00011022,2]
[327154809,1715862639639,-625.95,0.00011022,2]
[327154810,1715862639649,-500.0,0.00011022,2]
[327154811,1715862639659,-500.0,0.00011022,2]
[327154812,1715862639668,-435.8504196,0.00011022,2]
[327154813,1715862639679,-500.0,0.00011022,2]
[327154814,1715862639689,-500.0,0.00011022,2]
[327154815,1715862639700,-500.0,0.00011022,2]
[327154816,1715862639710,-500.0,0.00011022,2]
[327154817,1715862639720,-500.0,0.00011022,2]
[327154818,1715862639731,-500.0,0.00011023,2]
[327154819,1715862639742,-500.0,0.00011023,2]
[327154820,1715862639753,-500.0,0.00011023,2]
[327154821,1715862639764,-500.0,0.00011023,2]
[327154822,1715862639776,-218.12454037,0.00011023,2]
[327154823,1715862639787,-500.0,0.00011023,2]
[327154824,1715862639798,-429.98,0.00011023,2]
[327154825,1715862639809,-2000.0,0.00011023,2]
[327154826,1715862639820,-490.31,0.00011023,2]
[327154827,1715862639831,-500.0,0.00011023,2]
[327154828,1715862639842,-500.0,0.00011023,2]
[327154829,1715862639869,-800.0,0.00011041,2]
[327154830,1715862639880,-800.0,0.00011041,2]
[327154831,1715862639892,-2501.33020882,0.00011056,2]
[327154832,1715862639902,-3603.9388455,0.00011061,2]
[327154833,1715862639913,-500.0,0.00011062,2]
[327154834,1715862639924,-504.86551836,0.00011062,2]
[327154835,1715862639935,-500.82280582,0.00011062,2]
[327154836,1715862639945,-500.0,0.00011062,2]
[327154837,1715862639957,-500.0,0.00011062,2]
[327154838,1715862639967,-500.0,0.00011062,2]
[327154839,1715862639978,-500.0,0.00011062,2]
[327154840,1715862639988,-527.61974846,0.00011062,2]
[327154841,1715862639999,-530.44676741,0.00011062,2]
[327154842,1715862640011,-500.0,0.00011062,2]
[327154843,1715862640022,-499.42500445,0.00011062,2]
[327154844,1715862640032,-500.0,0.00011062,2]
[327154845,1715862640044,-532.88209216,0.00011062,2]
[327154846,1715862640055,-500.0,0.00011062,2]
[327154847,1715862640073,-512.01226794,0.00011062,2]
[327154848,1715862640085,-500.0,0.00011062,2]
[327154849,1715862640096,-539.95659499,0.00011062,2]
[327154850,1715862640120,-500.0,0.00011062,2]
[327154851,1715862640130,-506.36112904,0.00011062,2]
[327154852,1715862640141,-500.0,0.00011062,2]
[327154853,1715862640153,-323.51563203,0.00011062,2]
[327154854,1715862640165,-500.0,0.00011062,2]
[327154855,1715862640176,-519.09236909,0.00011062,2]
[327154856,1715862640187,-500.0,0.00011062,2]
[327154858,1715862640199,-525.49588025,0.00011062,2]
[327154859,1715862640211,-500.0,0.00011062,2]
[327154860,1715862640222,-500.0,0.00011062,2]
[327154861,1715862640233,-500.0,0.00011062,2]
[327154862,1715862640245,-500.0,0.00011062,2]
[327154863,1715862640256,-500.0,0.00011062,2]
[327154864,1715862640267,-500.0,0.00011062,2]
[327154865,1715862640279,-500.0,0.00011062,2]
[327154866,1715862640289,-500.0,0.00011062,2]
[327154867,1715862640300,-500.0,0.00011062,2]
[327154868,1715862640311,-500.0,0.00011062,2]
[327154869,1715862640322,-500.0,0.00011062,2]
[327154870,1715862640332,-500.0,0.00011062,2]
[327154871,1715862640343,-500.0,0.00011062,2]
[327154872,1715862640360,-500.0,0.00011062,2]
[327154875,1715862640373,-500.0,0.00011062,2]
[327154877,1715862640384,-151.0,0.00011062,2]
[327154879,1715862640395,-342.62216077,0.00011062,2]
[327154881,1715862640435,-500.0,0.00011021,2]
[327154882,1715862640445,-157.37783923,0.00011062,2]
[327154883,1715862640457,-96.2853758,0.00011062,2]
[327154884,1715862640506,-54.7146242,0.00011062,2]
[327154885,1715862640517,-510.9287127,0.00011062,2]
[327154886,1715862640527,-151.0,0.00011062,2]
[327154887,1715862640539,-151.0,0.00011062,2]
[327154888,1715862640550,-500.0,0.00011062,2]
[327154889,1715862640561,-500.0,0.00011062,2]
[327154890,1715862640572,-159.713566,0.00011062,2]
[327154891,1715862640583,-151.0,0.00011062,2]
[327154892,1715862640593,-151.0,0.00011062,2]
[327154893,1715862640611,-159.713566,0.00011062,2]
[327154894,1715862640622,-151.0,0.00011062,2]
[327154895,1715862640632,-151.0,0.00011062,2]
[327154896,1715862640643,-151.0,0.00011062,2]
[327154897,1715862640655,-151.0,0.00011062,2]
[327154898,1715862640666,-266.55278,0.00011062,2]
[327154899,1715862640676,-151.0,0.00011062,2]
[327154900,1715862640686,-514.97575938,0.00011062,2]
[327154901,1715862640697,-151.0,0.00011062,2]
[327154902,1715862640709,-518.81507929,0.00011062,2]
[327154903,1715862640720,-182.392427,0.00011062,2]
[327154904,1715862640730,-151.0,0.00011062,2]
[327154905,1715862640741,-151.0,0.00011062,2]
[327154906,1715862640751,-417.383716,0.00011062,2]
[327154907,1715862640762,-151.0,0.00011062,2]
[327154908,1715862640774,-417.383716,0.00011062,2]
[327154909,1715862640785,-167.433361,0.00011062,2]
[327154910,1715862640795,-247.80341423,0.00011062,2]
[327154911,1715862642166,-500.0,0.00011021,2]
[327154912,1715862642178,-164.15,0.00011021,2]
[327154913,1715862642192,-335.85,0.00011021,2]
[327154914,1715862642203,-500.0,0.00011021,2]
[327154915,1715862642217,-500.0,0.00011021,2]
[327154916,1715862642228,-500.0,0.00011022,2]
[327154917,1715862642239,-252.19658577,0.00011062,2]
[327154918,1715862642251,-519.38974842,0.00011062,2]
[327154919,1715862642262,-513.73767505,0.00011062,2]
[327154920,1715862642273,-500.0,0.00011062,2]
[327154921,1715862642285,-267.481126,0.00011062,2]
[327154922,1715862642295,-151.0,0.00011062,2]
[327154923,1715862642306,-477.00889719,0.00011062,2]
[327154924,1715862642339,-34.77444748,0.00011062,2]
[327154925,1715862642350,-500.0,0.00011062,2]
[327154926,1715862642362,-151.0,0.00011062,2]
[327154927,1715862642382,-500.0,0.00011062,2]
[327154928,1715862642402,-500.0,0.00011062,2]
[327154929,1715862642411,-151.0,0.00011062,2]
[327154930,1715862642422,-151.0,0.00011062,2]
[327154931,1715862642433,-151.0,0.00011062,2]
[327154932,1715862642444,-187.749859,0.00011062,2]
[327154933,1715862642455,-151.0,0.00011062,2]
[327154934,1715862642466,-187.749859,0.00011062,2]
[327154935,1715862642476,-151.0,0.00011062,2]
[327154936,1715862642488,-500.0,0.00011062,2]
[327154937,1715862642499,-151.0,0.00011062,2]
[327154938,1715862642509,-151.0,0.00011062,2]
[327154939,1715862642520,-151.0,0.00011062,2]
[327154940,1715862642532,-151.0,0.00011062,2]
[327154941,1715862642542,-500.0,0.00011062,2]
[327154942,1715862642553,-500.0,0.00011062,2]
[327154943,1715862642563,-1000.0,0.00011063,2]
[327154944,1715862642574,-500.0,0.00011063,2]
[327154945,1715862642585,-151.0,0.00011063,2]
[327154946,1715862642596,-151.0,0.00011063,2]
[327154947,1715862642607,-151.0,0.00011063,2]
[327154948,1715862642617,-151.0,0.00011063,2]
[327154949,1715862642634,-151.0,0.00011063,2]
[327154950,1715862642646,-1554.482731,0.00011063,2]
[327154951,1715862642657,-1554.482731,0.00011063,2]
[327154952,1715862642670,-378.47925096,0.00011064,2]
[327154953,1715862642682,-155.34432872,0.00011064,2]
[327154954,1715862642694,-500.0,0.00011064,2]
[327154955,1715862642705,-500.0,0.00011064,2]
[327154956,1715862642717,-515.53855746,0.00011064,2]
[327154957,1715862642733,-500.0,0.00011064,2]
[327154958,1715862642745,-500.0,0.00011064,2]
[327154959,1715862642756,-500.0,0.00011064,2]
[327154960,1715862642768,-500.0,0.00011064,2]
[327154961,1715862642781,-255.15121678,0.00011064,2]
[327154962,1715862642792,-500.0,0.00011064,2]
[327154963,1715862642803,-500.0,0.00011064,2]
[327154964,1715862642813,-500.0,0.00011064,2]
[327154965,1715862642825,-500.0,0.00011064,2]
[327154966,1715862642838,-500.0,0.00011064,2]
[327154967,1715862642849,-500.0,0.00011064,2]
[327154968,1715862642861,-500.0,0.00011064,2]
[327154969,1715862642876,-500.0,0.00011064,2]
[327154970,1715862642888,-500.0,0.00011064,2]
[327154971,1715862642922,-500.0,0.00011064,2]
[327154972,1715862642934,-513.91,0.00011064,2]
[327154973,1715862642945,-515.28914811,0.00011064,2]
[327154974,1715862642957,-500.0,0.00011064,2]
[327154975,1715862642967,-500.0,0.00011064,2]
[327154976,1715862642978,-500.0,0.00011064,2]
[327154977,1715862642989,-500.0,0.00011064,2]
[327154978,1715862643000,-500.0,0.00011064,2]
[327154979,1715862643012,-500.0,0.00011064,2]
[327154980,1715862643022,-882.58026723,0.00011064,2]
[327154981,1715862643034,-266.15160659,0.00011064,2]
[327154982,1715862643046,-525.33227843,0.00011064,2]
[327154983,1715862643057,-495.49162865,0.00011064,2]
[327154984,1715862643074,-426.71094811,0.00011064,2]
[327154985,1715862643085,-302.02478597,0.00011064,2]
[327154986,1715862643097,-237.05268087,0.00011064,2]
[327154987,1715862643111,-151.0,0.00011064,2]
[327154988,1715862643122,-151.0,0.00011064,2]
[327154989,1715862643134,-151.0,0.00011064,2]
[327154990,1715862643147,-253.48164,0.00011064,2]
[327154991,1715862643159,-151.0,0.00011064,2]
[327154992,1715862643169,-151.0,0.00011064,2]
[327154993,1715862643180,-151.0,0.00011064,2]
[327154994,1715862643190,-151.0,0.00011064,2]
[327154995,1715862643201,-151.0,0.00011064,2]
[327154996,1715862643212,-151.0,0.00011064,2]